bitfinex/quotes_SOLUSD_20240925
["timestamp","ask_amount","ask_price","bid_price","bid_amount"]
[1727286480815,138.17025502,149.25,149.24,28.28495709]
[1727286481008,138.17025502,149.25,149.24,50.7221153]
[1727286481712,138.17025502,149.25,149.24,52.06179282]
[1727286481926,138.17025502,149.25,149.24,50.7221153]
[1727286482711,37.49918633,149.25,149.24,50.7221153]
[1727286484216,37.49918633,149.25,149.24,26.9452313]
[1727286485297,37.49918633,149.25,149.24,6.9452313]
[1727286486316,37.49918633,149.25,149.24,30.7221153]
[1727286486819,37.49918633,149.25,149.24,50.7221153]
[1727286490723,37.49918633,149.25,149.24,52.06171818]
[1727286491537,37.49918633,149.25,149.24,50.7221153]
[1727286496704,32.50678633,149.25,149.24,50.7221153]
[1727286496914,28.40008633,149.25,149.24,50.7221153]
[1727286498512,16.4453,149.33,149.25,43.776884]
[1727286498715,16.4453,149.33,149.28,18.8980266]
[1727286498939,16.4453,149.33,149.3,23.776884]
[1727286499122,16.4453,149.33,149.31,1.33913024]
[1727286499824,16.4453,149.33,149.32,23.776884]
[1727286500141,13.0617,149.39,149.32,23.776884]
[1727286500337,15.1637,149.38,149.31,23.776884]
[1727286503032,15.1637,149.38,149.32,20.0]
[1727286503238,15.1637,149.38,149.33,23.776884]
[1727286505633,15.1637,149.38,149.25,6.19172242]
[1727286505838,6.6952,149.36,149.26,38.8980266]
[1727286506132,15.67396541,149.38,149.26,18.8980266]
[1727286506325,6.6957,149.35,149.26,18.8980266]
[1727286506524,6.6961,149.34,149.24,19.1426579]
[1727286506720,15.7297,149.33,149.24,19.1426579]
[1727286508021,13.2645,149.32,149.24,0.2446313]
[1727286509339,13.2645,149.32,149.24,24.0215153]
[1727286509643,6.6979,149.3,149.24,0.2446313]
[1727286509825,22.9654,149.31,149.24,0.2446313]
[1727286511841,22.9654,149.31,149.25,1.33953137]
[1727286512221,16.2679,149.31,149.28,23.776884]
[1727286512439,16.2679,149.31,149.29,1.3393021]
[1727286512735,16.2679,149.31,149.28,23.776884]
[1727286514341,16.2679,149.31,149.29,1.33933903]
[1727286514715,16.2679,149.31,149.28,23.776884]
[1727286515122,16.2679,149.31,149.27,20.0]
[1727286515524,16.2679,149.31,149.28,1.33938312]
[1727286515828,16.2679,149.31,149.29,1.33936088]
[1727286516637,16.2679,149.31,149.28,23.776884]
[1727286517435,16.2679,149.31,149.27,20.0]
[1727286517629,16.2679,149.31,149.26,20.0]
[1727286517949,16.2679,149.31,149.27,23.776884]
[1727286520443,16.2679,149.31,149.29,23.776884]
[1727286520638,16.2679,149.31,149.27,23.776884]
[1727286521324,16.2679,149.31,149.28,1.33935353]
[1727286522134,16.2679,149.31,149.27,23.776884]
[1727286527247,16.2679,149.31,149.28,1.33932625]
[1727286527457,16.2679,149.31,149.29,23.776884]
[1727286527837,16.2679,149.31,149.3,1.33917227]
[1727286528046,16.2679,149.31,149.3,23.776884]
[1727286529937,16.2679,149.31,149.26,20.0]
[1727286529938,16.2679,149.31,149.25,20.0]
[1727286531344,16.2679,149.31,149.26,1.33938696]
[1727286532040,16.2679,149.31,149.27,20.0]
[1727286532246,16.2679,149.31,149.28,23.776884]
[1727286532663,15.933,149.35,149.3,23.776884]
[1727286532973,15.933,149.35,149.32,23.776884]
[1727286533143,15.933,149.35,149.33,1.33898923]
[1727286533470,15.933,149.35,149.32,23.776884]
[1727286533760,15.8229,149.39,149.35,23.776884]
[1727286534063,15.8229,149.39,149.37,23.776884]
[1727286534245,15.8229,149.39,149.38,25.11536337]
[1727286534450,15.8229,149.39,149.38,23.776884]
[1727286534981,15.8229,149.39,149.37,1.33855948]
[1727286535268,15.8229,149.39,149.38,23.776884]
[1727286536270,15.8229,149.39,149.37,23.776884]
[1727286538074,0.2446313,149.4,149.38,20.0]
[1727286538254,0.2446313,149.4,149.39,25.11518574]
[1727286538662,0.2446313,149.4,149.39,43.776884]
[1727286539375,0.2446313,149.4,149.39,45.11516293]
[1727286539560,0.2446313,149.4,149.39,43.776884]
[1727286540272,0.2446313,149.4,149.39,20.0]
[1727286540578,0.2446313,149.4,149.36,18.85074344]
[1727286540754,0.2446313,149.4,149.37,43.776884]
[1727286541452,0.2446313,149.4,149.34,18.85074344]
[1727286541662,0.2446313,149.4,149.35,20.0]
[1727286542749,0.2446313,149.4,149.36,23.776884]
[1727286544263,0.2446313,149.4,149.33,20.0]
[1727286545255,0.2446313,149.4,149.34,20.18939693]
[1727286545574,0.2446313,149.4,149.36,23.776884]
[1727286546651,0.2446313,149.4,149.32,18.85074344]
[1727286546867,15.3236,149.39,149.33,20.0]
[1727286547074,15.3236,149.39,149.34,1.33874921]
[1727286547874,15.3236,149.39,149.33,20.0]
[1727286548076,15.3236,149.39,149.34,23.776884]
[1727286548779,15.3236,149.39,149.36,23.776884]
[1727286549361,15.3236,149.39,149.35,20.0]
[1727286549662,15.3236,149.39,149.36,23.776884]
[1727286549971,15.3236,149.39,149.38,23.776884]
[1727286550182,0.2446313,149.4,149.38,25.11546569]
[1727286550359,0.2446313,149.4,149.38,43.96620913]
[1727286550558,0.2446313,149.4,149.38,42.62762744]
[1727286550761,0.2446313,149.4,149.39,1.33823058]
[1727286550964,0.2446313,149.4,149.39,45.11511458]
[1727286551162,0.2446313,149.4,149.39,43.776884]
[1727286551968,0.2446313,149.4,149.36,18.85074344]
[1727286552185,0.2446313,149.4,149.34,38.85074344]
[1727286552369,0.2446313,149.4,149.37,23.776884]
[1727286552876,0.2446313,149.4,149.35,20.0]
[1727286553081,0.2446313,149.4,149.37,20.0]
[1727286553285,0.2446313,149.4,149.38,18.85074344]
[1727286553658,0.2446313,149.4,149.39,20.0]
[1727286554174,0.2446313,149.4,149.39,43.776884]
[1727286555360,0.2446313,149.4,149.39,45.11518484]
[1727286556367,0.2446313,149.4,149.39,43.776884]
[1727286556884,0.2446313,149.4,149.39,45.11509139]
[1727286557790,0.2446313,149.45,149.41,20.0]
[1727286557964,0.2446313,149.45,149.43,23.776884]
[1727286558288,0.2446313,149.45,149.44,1.33799712]
[1727286558470,0.2446313,149.45,149.44,23.776884]
[1727286558670,0.2446313,149.45,149.44,63.96562434]
[1727286559096,0.421927,149.49,149.45,43.776884]
[1727286559268,0.421927,149.49,149.48,62.62762744]
[1727286566180,0.421927,149.49,149.48,43.776884]
[1727286566387,16.6714313,149.54,149.49,43.776884]
[1727286566388,0.2446313,149.54,149.49,43.776884]
[1727286566692,0.2446313,149.54,149.51,42.62762744]
[1727286566891,0.2446313,149.54,149.52,1.33706979]
[1727286567193,0.2446313,149.54,149.53,23.776884]
[1727286567574,0.2446313,149.54,149.52,23.776884]
[1727286567780,0.2446313,149.54,149.51,18.85074344]
[1727286567781,0.2446313,149.54,149.53,25.1139398]
[1727286568169,0.2446313,149.54,149.53,63.96468324]
[1727286568791,0.2446313,149.54,149.53,62.62762744]
[1727286568992,0.2446313,149.54,149.53,43.776884]
[1727286569383,0.2446313,149.54,149.53,20.0]
[1727286569694,16.1961313,149.54,149.46,18.85074344]
[1727286570390,16.1961313,149.54,149.44,18.85074344]
[1727286570588,22.8832313,149.54,149.44,18.85074344]
[1727286570795,6.688,149.52,149.44,18.85074344]
[1727286570974,16.1961313,149.54,149.44,18.85074344]
[1727286571285,22.8833313,149.54,149.44,18.85074344]
[1727286571484,6.6878,149.53,149.44,18.85074344]
[1727286571877,6.688,149.52,149.44,18.85074344]
[1727286572089,6.688,149.52,149.45,20.0]
[1727286572390,6.688,149.52,149.44,18.85074344]
[1727286572709,6.6877,149.53,149.42,36.84863732]
[1727286572893,6.6877,149.53,149.43,23.776884]
[1727286573604,6.6877,149.53,149.45,23.776884]
[1727286573797,6.6877,149.53,149.47,23.776884]
[1727286573983,6.6877,149.53,149.48,1.33766212]
[1727286574390,6.6877,149.53,149.45,23.776884]
[1727286574596,6.6877,149.53,149.46,21.33764454]
[1727286574795,6.6877,149.53,149.47,23.776884]
[1727286575095,22.8832313,149.54,149.49,23.776884]
[1727286576404,16.1961313,149.54,149.49,23.776884]
[1727286577282,16.1961313,149.54,149.51,23.776884]
[1727286577801,16.1961313,149.54,149.52,1.33732475]
[1727286578893,16.1961313,149.54,149.53,23.776884]
[1727286579509,16.1961313,149.54,149.53,25.11413648]
[1727286579693,0.2446313,149.54,149.53,45.11413648]
[1727286581285,0.2446313,149.54,149.53,43.776884]
[1727286581703,0.2446313,149.54,149.53,45.11382962]
[1727286582486,0.421927,149.58,149.54,20.0]
[1727286582810,0.421927,149.58,149.51,36.33033732]
[1727286582811,0.421927,149.58,149.57,43.776884]
[1727286582982,0.421927,149.58,149.57,45.11352501]
[1727286583604,15.2309,149.62,149.57,45.11352501]
[1727286583784,0.1772957,149.58,149.57,43.776884]
[1727286588109,0.2544001,149.6,149.58,23.776884]
[1727286588318,0.3077152,149.65,149.6,23.776884]
[1727286588490,0.3077152,149.65,149.64,30.13063732]
[1727286588808,0.3077152,149.65,149.64,75.24364432]
[1727286589115,0.1772957,149.67,149.65,43.776884]
[1727286589420,0.1772957,149.67,149.66,45.11269391]
[1727286589918,0.1772957,149.67,149.66,43.776884]
[1727286590384,0.1772957,149.67,149.66,45.11270278]
[1727286591685,15.5643152,149.71,149.7,23.776884]
[1727286591903,15.5643152,149.71,149.7,45.1125518]
[1727286592611,15.5643152,149.71,149.7,43.776884]
[1727286594210,15.5643152,149.71,149.7,23.776884]
[1727286594786,15.5643152,149.71,149.6,2.88415301]
[1727286595003,15.5643152,149.71,149.59,9.99710817]
[1727286595004,15.5643152,149.71,149.67,43.776884]
[1727286595406,15.5643152,149.71,149.69,43.776884]
[1727286597315,15.5643152,149.71,149.7,18.77366456]
[1727286597316,0.3077152,149.71,149.7,18.77366456]
[1727286597497,0.3077152,149.71,149.7,42.55054856]
[1727286597696,0.3077152,149.71,149.7,62.55054856]
[1727286598102,0.3077152,149.71,149.7,43.776884]
[1727286600615,0.3077152,149.71,149.69,23.776884]
[1727286602621,0.3077152,149.71,149.7,25.11252373]
[1727286602803,0.3077152,149.71,149.69,23.776884]
[1727286602999,0.3077152,149.71,149.59,9.99710817]
[1727286603310,0.3077152,149.71,149.62,18.77366456]
[1727286603311,15.7081,149.7,149.62,18.77366456]
[1727286603619,15.7081,149.7,149.64,18.77366456]
[1727286603806,15.7081,149.7,149.65,1.33597108]
[1727286604313,15.7081,149.7,149.65,20.0]
[1727286604502,15.7081,149.7,149.68,23.776884]
[1727286604693,15.7081,149.7,149.68,25.11278873]
[1727286606206,15.7081,149.7,149.68,23.776884]
[1727286606812,15.7081,149.7,149.66,18.77366456]
[1727286607006,15.7081,149.7,149.65,23.776884]
[1727286607308,15.7081,149.7,149.67,23.776884]
[1727286607699,15.7081,149.7,149.62,18.77366456]
[1727286607906,15.7081,149.7,149.6,18.77366456]
[1727286608108,6.6805,149.69,149.6,18.77366456]
[1727286608426,22.3882,149.7,149.61,1.33621345]
[1727286608601,22.3882,149.7,149.62,18.77366456]
[1727286608802,22.3882,149.7,149.63,1.33615412]
[1727286609416,22.3882,149.7,149.64,23.776884]
[1727286609596,22.3882,149.7,149.65,1.33615573]
[1727286609794,15.7081,149.7,149.66,23.776884]
[1727286610305,16.21836541,149.7,149.63,20.0]
[1727286610706,6.6816,149.67,149.63,20.0]
[1727286610907,6.6809,149.68,149.61,20.0]
[1727286611605,6.6809,149.68,149.62,1.3363011]
[1727286612197,6.6809,149.68,149.63,23.776884]
[1727286612396,6.6809,149.68,149.64,1.33630157]
[1727286612920,22.3885,149.7,149.63,23.776884]
[1727286613117,15.7081,149.7,149.63,23.776884]
[1727286613420,15.7081,149.7,149.65,23.776884]
[1727286613906,22.3884,149.7,149.62,18.77366456]
[1727286614212,22.3884,149.7,149.63,45.11305664]
[1727286614636,22.3884,149.7,149.63,43.776884]
[1727286615797,22.3572,149.69,149.49,301.9216]
[1727286616127,6.6827,149.64,149.55,18.77366456]
[1727286616425,16.0473,149.63,149.57,18.77366456]
[1727286616717,16.0473,149.63,149.58,1.3365553]
[1727286616915,16.0473,149.63,149.57,18.77366456]
[1727286617226,16.0473,149.63,149.55,18.77366456]
[1727286617612,22.7305,149.63,149.55,18.77366456]
[1727286619013,16.0473,149.63,149.56,21.33672288]
[1727286619316,16.0473,149.63,149.56,20.0]
[1727286619708,16.0473,149.63,149.58,20.0]
[1727286619911,6.3514,149.61,149.5,20.0]
[1727286620121,6.6853,149.59,149.5,18.77366456]
[1727286620611,22.3563,149.6,149.52,1.33706338]
[1727286621406,22.3563,149.6,149.52,20.11072794]
[1727286621708,22.3563,149.6,149.53,20.0]
[1727286623213,22.3563,149.6,149.54,18.77366456]
[1727286623521,6.6849,149.59,149.54,18.77366456]
[1727286623828,22.3563,149.6,149.54,18.77366456]
[1727286624005,22.3563,149.6,149.55,1.33704231]
[1727286624704,15.6718,149.6,149.55,1.33704231]
[1727286625514,15.6718,149.6,149.54,18.77366456]
[1727286625822,16.18206541,149.6,149.54,18.77366456]
[1727286626128,22.86656541,149.6,149.54,18.77366456]
[1727286626623,22.3563,149.6,149.54,18.77366456]
[1727286627132,6.685,149.59,149.55,1.3370398]
[1727286628302,15.6718,149.6,149.55,1.3370398]
[1727286628503,22.3563,149.6,149.54,18.77366456]
[1727286628705,15.6718,149.6,149.56,18.77366456]
[1727286628911,15.6718,149.6,149.58,18.77366456]
[1727286629128,15.6718,149.6,149.59,1.33688583]
[1727286629428,6.6049,149.65,149.59,1.33688583]
[1727286629634,6.6049,149.65,149.6,18.77366456]
[1727286629921,6.6049,149.65,149.61,1.3366467]
[1727286630122,6.6049,149.65,149.6,18.77366456]
[1727286630323,6.683,149.64,149.58,18.77366456]
[1727286630520,6.6841,149.61,149.51,6.3196152]
[1727286630721,6.6838,149.62,149.55,18.77366456]
[1727286630936,6.6832,149.63,149.56,20.0]
[1727286631412,6.6049,149.65,149.57,18.77366456]
[1727286631607,13.2874,149.65,149.59,18.77366456]
[1727286632324,13.2874,149.65,149.6,1.3366143]
[1727286632523,16.1989,149.64,149.6,1.3366143]
[1727286634422,16.1989,149.64,149.61,18.77366456]
[1727286634626,16.1989,149.64,149.62,1.33649584]
[1727286635123,16.1989,149.64,149.61,18.77366456]
[1727286635329,16.1989,149.64,149.6,20.0]
[1727286636838,0.3077152,149.71,149.59,18.77366456]
[1727286636839,16.3066,149.67,149.63,18.77366456]
[1727286637126,16.3066,149.67,149.64,1.33626979]
[1727286638424,16.3066,149.67,149.63,18.77366456]
[1727286639534,16.3066,149.67,149.64,21.33627132]
[1727286639739,16.3066,149.67,149.65,18.77366456]
[1727286640033,16.3066,149.67,149.66,1.33619114]
[1727286640414,15.9248152,149.71,149.66,1.33619114]
[1727286640616,15.9248152,149.71,149.67,18.77366456]
[1727286640818,15.9248152,149.71,149.68,1.33595245]
[1727286641026,15.9248152,149.71,149.65,18.77366456]
[1727286641225,15.9248152,149.71,149.66,20.0]
[1727286642918,15.9248152,149.71,149.63,18.77366456]
[1727286643125,15.9248152,149.71,149.64,20.0]
[1727286643126,6.68,149.7,149.64,20.0]
[1727286643426,0.51026541,149.69,149.64,20.0]
[1727286644123,7.19066541,149.69,149.62,20.0]
[1727286644526,6.681,149.68,149.62,20.0]
[1727286645246,0.0772066,149.68,149.62,20.0]
[1727286645541,6.7582066,149.68,149.62,20.0]
[1727286645918,6.7582066,149.68,149.63,1.33640007]
[1727286646119,6.7582066,149.68,149.62,20.0]
[1727286646425,22.1646,149.67,149.63,1.33639843]
[1727286646638,28.8462,149.67,149.6,20.0]
[1727286647243,6.6819,149.66,149.57,18.77366456]
[1727286648136,22.1646,149.67,149.59,42.55054856]
[1727286648326,22.1646,149.67,149.6,1.33649053]
[1727286648520,22.1646,149.67,149.61,18.77366456]
[1727286648840,22.1646,149.67,149.62,21.33635245]
[1727286649219,22.1646,149.67,149.62,20.0]
[1727286649948,22.1646,149.67,149.63,1.33637657]
[1727286650331,22.1646,149.67,149.62,20.0]
[1727286650535,22.1646,149.67,149.63,1.33644854]
[1727286650721,22.1646,149.67,149.62,20.0]
[1727286650922,22.1646,149.67,149.62,21.33645662]
[1727286651445,22.1646,149.67,149.62,20.0]
[1727286651625,28.846,149.67,149.6,20.0]
[1727286651825,22.1646,149.67,149.61,1.3365398]
[1727286652027,22.1646,149.67,149.62,20.0]
[1727286652232,22.1646,149.67,149.63,1.3363504]
[1727286652429,15.8498,149.67,149.64,20.0]
[1727286652632,0.0772066,149.68,149.66,20.0]
[1727286652828,0.0772066,149.68,149.67,1.33605774]
[1727286653746,0.0772066,149.68,149.66,20.0]
[1727286655349,0.0772066,149.68,149.66,21.33607794]
[1727286656254,0.0772066,149.68,149.66,20.0]
[1727286656451,0.0772066,149.68,149.66,21.33615945]
[1727286656622,0.0772066,149.68,149.66,20.0]
[1727286657024,0.0772066,149.68,149.64,20.0]
[1727286657228,0.0772066,149.68,149.65,1.33616031]
[1727286658229,0.0772066,149.68,149.66,20.0]
[1727286658429,0.0772066,149.68,149.67,1.33607859]
[1727286658647,0.0772066,149.68,149.66,20.0]
[1727286658856,0.0772066,149.68,149.66,1.33613713]
[1727286659153,0.0772066,149.68,149.66,21.33613713]
[1727286659730,0.0772066,149.68,149.67,63.88655905]
[1727286659942,0.2587003,149.71,149.68,43.776884]
[1727286660142,0.2587003,149.71,149.7,62.55054856]
[1727286661727,0.2587003,149.71,149.7,20.0]
[1727286661932,0.2587003,149.71,149.69,20.0]
[1727286662152,0.2587003,149.71,149.7,1.33573375]
[1727286662351,0.2587003,149.71,149.69,20.0]
[1727286662534,0.2587003,149.71,149.67,20.0]
[1727286662737,0.2587003,149.71,149.68,1.33602118]
[1727286662951,0.2587003,149.71,149.66,20.10967971]
[1727286663149,0.2587003,149.71,149.67,20.0]
[1727286663459,0.2587003,149.71,149.68,1.33585167]
[1727286664656,0.2587003,149.71,149.65,30.03830104]
[1727286664958,0.2587003,149.71,149.66,1.33603933]
[1727286665256,0.2587003,149.71,149.62,30.03830104]
[1727286665936,0.76896571,149.71,149.63,20.0]
[1727286666138,6.9382003,149.71,149.64,1.33613942]
[1727286666335,6.9382003,149.71,149.63,20.0]
[1727286666662,0.2587003,149.71,149.63,20.0]
[1727286667344,0.76896571,149.71,149.63,20.0]
[1727286668859,0.2587003,149.71,149.63,20.0]
[1727286669043,28.0483,149.69,149.59,30.03830104]
[1727286669247,7.19116541,149.68,149.59,30.03830104]
[1727286669436,0.51026541,149.68,149.59,30.03830104]
[1727286669644,6.6814,149.67,149.59,30.03830104]
[1727286670065,6.6814,149.67,149.6,1.33654837]
[1727286670253,6.6814,149.67,149.59,30.03830104]
[1727286670841,7.19206541,149.66,149.56,30.03830104]
[1727286671044,21.3678,149.69,149.59,30.03830104]
[1727286671256,15.16,149.69,149.65,30.03830104]
[1727286671455,0.2587003,149.71,149.69,20.0]
[1727286671944,0.2587003,149.71,149.7,1.33572082]
[1727286672247,0.2587003,149.71,149.7,45.11249521]
[1727286672864,0.2587003,149.71,149.7,43.776884]
[1727286673250,0.2587003,149.71,149.69,20.0]
[1727286673665,0.2587003,149.71,149.67,20.0]
[1727286675169,0.2587003,149.71,149.68,1.33583087]
[1727286676047,0.2587003,149.71,149.67,20.0]
[1727286678373,0.2587003,149.71,149.68,1.33582385]
[1727286681552,0.2587003,149.71,149.67,20.0]
[1727286683076,0.2587003,149.71,149.66,30.03830104]
[1727286683763,0.2587003,149.71,149.63,30.03830104]
[1727286683962,0.2587003,149.71,149.63,53.81518504]
[1727286684161,0.2587003,149.71,149.64,20.0]
[1727286684365,0.2587003,149.71,149.65,1.33608096]
[1727286685475,0.2587003,149.71,149.67,20.0]
[1727286686473,0.2587003,149.71,149.68,1.33590465]
[1727286686669,0.2587003,149.71,149.69,20.0]
[1727286686893,0.2587003,149.71,149.7,40.10911813]
[1727286687371,0.2587003,149.71,149.7,38.77332009]
[1727286688376,0.2587003,149.71,149.7,62.55020409]
[1727286688764,0.2587003,149.71,149.7,38.77332009]
[1727286690454,0.2587003,149.71,149.7,62.55020409]
[1727286692671,0.2587003,149.71,149.7,38.77332009]
[1727286694182,0.2587003,149.71,149.7,62.55020409]
[1727286697275,0.2587003,149.71,149.68,18.77332009]
[1727286697462,0.2587003,149.71,149.69,20.0]
[1727286697667,0.2587003,149.71,149.68,18.77332009]
[1727286699186,0.2587003,149.71,149.69,20.0]
[1727286703791,0.2587003,149.71,149.7,38.77332009]
[1727286704399,0.2587003,149.71,149.7,62.55020409]
[1727286704698,15.595996,149.76,149.67,1.33566851]
[1727286704699,0.4133605,149.76,149.75,38.77332009]
[1727286705988,0.4133605,149.76,149.74,20.0]
[1727286708590,0.4133605,149.76,149.66,14.57831056]
[1727286708772,0.4133605,149.76,149.69,18.77332009]
[1727286708970,0.4133605,149.76,149.64,23.49881056]
[1727286708971,0.92362591,149.76,149.64,23.49881056]
[1727286709177,21.5011,149.75,149.68,18.77332009]
[1727286709395,0.51026541,149.74,149.68,18.77332009]
[1727286709876,0.51026541,149.74,149.66,18.77332009]
[1727286710080,28.179,149.75,149.66,18.77332009]
[1727286710386,28.179,149.75,149.67,1.33595249]
[1727286712298,28.179,149.75,149.67,21.33595249]
[1727286712476,28.179,149.75,149.67,20.0]
[1727286713101,28.179,149.75,149.68,1.33595597]
[1727286713397,21.5011,149.75,149.72,18.77332009]
[1727286714881,0.4133605,149.76,149.72,18.77332009]
[1727286715994,0.4133605,149.76,149.71,20.0]
[1727286719508,0.51026541,149.75,149.71,20.0]
[1727286719706,0.51026541,149.75,149.69,20.0]
[1727286719890,15.8797,149.74,149.67,20.0]
[1727286720088,15.8797,149.74,149.66,18.77332009]
[1727286720391,0.51026541,149.73,149.66,18.77332009]
[1727286720596,15.8797,149.74,149.66,18.77332009]
[1727286720788,15.8797,149.74,149.67,1.33596454]
[1727286721189,22.5579,149.74,149.67,20.0]
[1727286721386,6.1525,149.73,149.68,1.33596451]
[1727286722192,0.51026541,149.72,149.67,20.0]
[1727286722398,6.1525,149.73,149.67,20.0]
[1727286723215,6.1525,149.73,149.67,21.33605564]
[1727286724788,6.1525,149.73,149.67,20.0]
[1727286727404,0.51026541,149.72,149.67,20.0]
[1727286727606,6.1525,149.73,149.67,20.0]
[1727286729493,6.1525,149.73,149.67,21.33610094]
[1727286730420,6.1525,149.73,149.66,18.77332009]
[1727286730421,6.1525,149.73,149.69,38.77332009]
[1727286730601,6.1525,149.73,149.7,1.33580571]
[1727286732723,0.4133605,149.76,149.72,20.0]
[1727286733621,0.51026541,149.75,149.69,38.77332009]
[1727286733919,0.4133605,149.76,149.69,38.77332009]
[1727286736108,0.4133605,149.76,149.7,1.33580522]
[1727286741232,0.4133605,149.76,149.72,20.0]
[1727286745017,0.4133605,149.76,149.73,1.33559247]
[1727286746024,0.51026541,149.75,149.69,20.0]
[1727286746237,0.4133605,149.76,149.68,20.0]
[1727286747131,0.4133605,149.76,149.69,1.33585342]
[1727286749344,7.0906605,149.76,149.68,20.0]
[1727286749536,0.51026541,149.75,149.68,20.0]
[1727286749711,7.0906605,149.76,149.68,20.0]
[1727286750516,0.4133605,149.76,149.68,21.33592736]
[1727286752708,0.4133605,149.76,149.71,18.77332009]
[1727286753234,0.4133605,149.76,149.72,20.0]
[1727286753611,0.4133605,149.76,149.7,20.0]
[1727286756732,0.51026541,149.75,149.7,20.0]
[1727286757221,0.4133605,149.76,149.7,20.0]
[1727286757420,0.4133605,149.76,149.71,1.3357151]
[1727286757736,0.4133605,149.76,149.72,20.0]
[1727286759126,0.4133605,149.76,149.73,18.77332009]
[1727286760219,0.51026541,149.75,149.7,20.0]
[1727286760416,0.4133605,149.76,149.7,20.0]
[1727286760724,0.4133605,149.76,149.71,1.33571836]
[1727286762623,0.4133605,149.76,149.72,20.0]
[1727286762839,0.4133605,149.76,149.72,21.33569907]
[1727286764440,0.4133605,149.76,149.73,18.77332009]
[1727286767027,0.4133605,149.76,149.74,1.33544378]
[1727286767422,0.4133605,149.76,149.73,18.77332009]
[1727286768334,0.4133605,149.76,149.75,12.00555679]
[1727286769140,0.4133605,149.76,149.74,12.00555679]
[1727286769440,0.4133605,149.76,149.72,12.00555679]
[1727286769632,0.4133605,149.76,149.73,20.0]
[1727286770949,0.4133605,149.76,149.72,12.00555679]
[1727286771149,0.4133605,149.76,149.73,12.00555679]
[1727286771321,0.4133605,149.76,149.72,12.00555679]
[1727286771726,0.4133605,149.76,149.73,20.0]
[1727286772828,0.92362591,149.76,149.71,12.00555679]
[1727286773051,0.92362591,149.76,149.72,20.0]
[1727286773543,0.4133605,149.76,149.73,12.00555679]
[1727286774122,0.51026541,149.75,149.72,20.0]
[1727286774340,0.4133605,149.76,149.72,20.0]
[1727286775339,0.4133605,149.76,149.72,21.33572421]
[1727286775656,0.4133605,149.76,149.69,20.0]
[1727286775824,0.92362591,149.76,149.69,12.00555679]
[1727286776025,7.60092591,149.76,149.7,20.0]
[1727286776842,7.60092591,149.76,149.69,12.00555679]
[1727286777044,0.4133605,149.76,149.69,12.00555679]
[1727286777257,0.4133605,149.76,149.7,12.00555679]
[1727286777832,6.6783,149.74,149.67,1.33598976]
[1727286778047,15.87476541,149.73,149.67,12.00555679]
[1727286778389,15.3645,149.73,149.69,12.00555679]
[1727286778954,15.3645,149.73,149.65,8.34822839]
[1727286778955,15.3645,149.73,149.71,12.00555679]
[1727286780137,0.4133605,149.76,149.71,12.00555679]
[1727286780352,0.4133605,149.76,149.73,12.00555679]
[1727286780947,0.4133605,149.76,149.75,12.00555679]
[1727286786966,0.4133605,149.76,149.73,12.00555679]
[1727286792765,0.4133605,149.76,149.75,32.00555679]
[1727286792974,0.4133605,149.76,149.75,20.0]
[1727286793142,0.4133605,149.76,149.75,32.00555679]
[1727286793341,0.4133605,149.76,149.73,8.34451501]
[1727286793342,0.4133605,149.76,149.72,8.34451501]
[1727286793561,0.4133605,149.76,149.74,20.0]
[1727286794869,0.4133605,149.76,149.75,12.00555679]
[1727286798855,0.4133605,149.76,149.72,29.67944901]
[1727286799059,0.4133605,149.76,149.74,12.00555679]
[1727286799656,0.4133605,149.76,149.68,22.87894314]
[1727286799977,0.51026541,149.75,149.71,20.0]
[1727286800348,16.5111,149.74,149.69,8.34427173]
[1727286800543,0.51026541,149.73,149.68,8.34427173]
[1727286800749,0.51026541,149.73,149.67,20.34982852]
[1727286800965,0.51026541,149.73,149.67,12.00555679]
[1727286801166,0.51026541,149.73,149.68,8.34642201]
[1727286801362,0.51026541,149.73,149.67,20.3519788]
[1727286801671,23.1894,149.74,149.67,20.3519788]
[1727286801869,16.5111,149.74,149.67,20.3519788]
[1727286802052,23.1894,149.74,149.67,12.00555679]
[1727286802952,23.1894,149.74,149.68,20.0]
[1727286803173,23.1894,149.74,149.67,20.0]
[1727286803471,23.1894,149.74,149.68,12.00555679]
[1727286803874,22.6894,149.74,149.68,12.00555679]